[Event "Schack-SM 2023: Mastarklassen"]
[Site "Helsingborg Arena, Mellersta Stenbocksgatan 14, Helsingborg, Sweden"]
[Date "2023.07.03"]
[Round "3.8"]
[White "Soppela, Toni"]
[Black "Nylen, Anders"]
[Result "1-0"]
[TimeControl "90 minutes for 40 moves + 30 minutes for the rest of games + 30 seconds per move from move one."]
[WhiteElo "2032"]
[BlackElo "2094"]

1. d4 {[%clk 01:30:50]} {[%emt 00:00:10]} Nf6 {[%clk 01:30:55]} {[%emt
00:00:05]} 2. c4 {[%clk 01:31:12]} {[%emt 00:00:08]} g6 {[%clk 01:31:20]}
{[%emt 00:00:06]} 3. Nc3 {[%clk 01:31:35]} {[%emt 00:00:07]} d5 {[%clk
01:31:45]} {[%emt 00:00:05]} 4. cxd5 {[%clk 01:31:19]} {[%emt 00:00:47]} Nxd5
{[%clk 01:32:08]} {[%emt 00:00:06]} 5. e4 {[%clk 01:31:42]} {[%emt 00:00:06]}
Nxc3 {[%clk 01:32:30]} {[%emt 00:00:08]} 6. bxc3 {[%clk 01:32:06]} {[%emt
00:00:07]} Bg7 {[%clk 01:32:53]} {[%emt 00:00:07]} 7. Nf3 {[%clk 01:31:41]}
{[%emt 00:00:55]} c5 {[%clk 01:32:50]} {[%emt 00:00:34]} 8. Bb5+ {[%clk
01:29:43]} {[%emt 00:02:26]} Bd7 {[%clk 01:31:17]} {[%emt 00:02:04]} 9. Be2
{[%clk 01:30:06]} {[%emt 00:00:07]} O-O {[%clk 01:30:49]} {[%emt 00:00:57]} 10.
Rb1 {[%clk 01:28:35]} {[%emt 00:02:00]} e6 {[%clk 01:26:53]} {[%emt 00:04:27]}
11. O-O {[%clk 01:28:28]} {[%emt 00:00:36]} Bc6 {[%clk 01:25:15]} {[%emt
00:02:10]} 12. Qc2 {[%clk 01:18:47]} {[%emt 00:10:10]} Nd7 {[%clk 01:18:02]}
{[%emt 00:07:43]} 13. Bb5 {[%clk 00:57:56]} {[%emt 00:21:21]} Bxb5 {[%clk
00:58:45]} {[%emt 00:19:48]} 14. Rxb5 {[%clk 00:58:05]} {[%emt 00:00:21]} cxd4
{[%clk 00:54:07]} {[%emt 00:05:09]} 15. cxd4 {[%clk 00:58:04]} {[%emt
00:00:29]} Nb6 {[%clk 00:53:03]} {[%emt 00:01:34]} 16. Rd1 {[%clk 00:37:03]}
{[%emt 00:21:31]} Qd7 {[%clk 00:47:51]} {[%emt 00:05:42]} 17. Qb3 {[%clk
00:33:11]} {[%emt 00:04:22]} Rfc8 {[%clk 00:38:56]} {[%emt 00:09:26]} 18. a4
{[%clk 00:32:35]} {[%emt 00:01:05]} Qc6 {[%clk 00:37:35]} {[%emt 00:01:51]} 19.
a5 {[%clk 00:15:29]} {[%emt 00:17:37]} Qxc1 {[%clk 00:33:36]} {[%emt 00:04:29]}
20. axb6 {[%clk 00:15:50]} {[%emt 00:00:08]} axb6 {[%clk 00:33:46]} {[%emt
00:00:20]} 21. g3 {[%clk 00:12:28]} {[%emt 00:03:52]} Ra3 {[%clk 00:24:53]}
{[%emt 00:09:24]} 22. Rxc1 {[%clk 00:12:42]} {[%emt 00:00:17]} Rxc1+ {[%clk
00:25:17]} {[%emt 00:00:05]} 23. Kg2 {[%clk 00:13:04]} {[%emt 00:00:07]} Rxb3
{[%clk 00:25:27]} {[%emt 00:00:20]} 24. Rxb3 {[%clk 00:13:33]} {[%emt
00:00:02]} Rc6 {[%clk 00:24:47]} {[%emt 00:01:11]} 25. Kf1 {[%clk 00:13:44]}
{[%emt 00:00:18]} Kf8 {[%clk 00:21:32]} {[%emt 00:03:44]} 26. Ke2 {[%clk
00:13:30]} {[%emt 00:00:45]} Ke8 {[%clk 00:21:14]} {[%emt 00:00:47]} 27. Kd3
{[%clk 00:13:36]} {[%emt 00:00:25]} h6 {[%clk 00:19:41]} {[%emt 00:02:03]} 28.
Rb5 {[%clk 00:07:01]} {[%emt 00:07:05]} Kd8 {[%clk 00:17:33]} {[%emt 00:02:37]}
29. Nd2 {[%clk 00:04:42]} {[%emt 00:02:49]} Rc1 {[%clk 00:09:20]} {[%emt
00:08:43]} 30. Rxb6 {[%clk 00:04:00]} {[%emt 00:01:13]} Kc7 {[%clk 00:09:39]}
{[%emt 00:00:10]} 31. Rb2 {[%clk 00:03:51]} {[%emt 00:00:39]} Kc6 {[%clk
00:07:48]} {[%emt 00:02:21]} 32. h4 {[%clk 00:04:12]} {[%emt 00:00:10]} b5
{[%clk 00:07:30]} {[%emt 00:00:47]} 33. Nb3 {[%clk 00:03:14]} {[%emt 00:01:30]}
Re1 {[%clk 00:05:42]} {[%emt 00:02:15]} 34. Rc2+ {[%clk 00:03:25]} {[%emt
00:00:21]} Kb6 {[%clk 00:05:42]} {[%emt 00:00:29]} 35. Rc8 {[%clk 00:03:11]}
{[%emt 00:00:45]} Rf1 {[%clk 00:04:00]} {[%emt 00:02:11]} 36. Ke3 {[%clk
00:01:59]} {[%emt 00:01:43]} Rb1 {[%clk 00:03:52]} {[%emt 00:00:37]} 37. Nd2
{[%clk 00:02:26]} {[%emt 00:00:04]} Rd1 {[%clk 00:02:49]} {[%emt 00:01:32]} 38.
e5 {[%clk 00:01:56]} {[%emt 00:01:00]} h5 {[%clk 00:01:23]} {[%emt 00:01:57]}
39. f4 {[%clk 00:02:22]} {[%emt 00:00:04]} b4 {[%clk 00:01:05]} {[%emt
00:00:47]} 40. Rg8 {[%clk 00:02:05]} {[%emt 00:00:48]} Bh6 {[%clk 00:01:30]}
{[%emt 00:00:04]} 41. Rh8 {[%clk 00:28:38]} {[%emt 00:03:57]} Bg7 {[%clk
00:31:28]} {[%emt 00:00:47]} 42. Rh7 {[%clk 00:26:53]} {[%emt 00:02:16]} Bf8
{[%clk 00:31:49]} {[%emt 00:00:09]} 43. Rxf7 {[%clk 00:27:14]} {[%emt
00:00:09]} Bh6 {[%clk 00:31:02]} {[%emt 00:01:17]} 44. Rf6 {[%clk 00:26:36]}
{[%emt 00:01:07]} Rg1 {[%clk 00:29:33]} {[%emt 00:02:01]} 45. Rxe6+ {[%clk
00:26:31]} {[%emt 00:00:35]} Kb5 {[%clk 00:29:43]} {[%emt 00:00:19]} 46. Rxg6
{[%clk 00:26:35]} {[%emt 00:00:26]} Bf8 {[%clk 00:29:52]} {[%emt 00:00:21]} 47.
Rg8 {[%clk 00:24:42]} {[%emt 00:02:22]} Be7 {[%clk 00:29:58]} {[%emt 00:00:25]}
48. f5 {[%clk 00:22:11]} {[%emt 00:03:00]} Bxh4 {[%clk 00:27:25]} {[%emt
00:03:04]} 49. Rb8+ {[%clk 00:22:08]} {[%emt 00:00:33]} 1-0

[Event "Schack-SM 2023: Mastarklassen"]
[Site "Helsingborg Arena, Mellersta Stenbocksgatan 14, Helsingborg, Sweden"]
[Date "2023.07.03"]
[Round "3.9"]
[White "Liden, Tommy"]
[Black "Persson, Lars 1971"]
[Result "1-0"]
[TimeControl "90 minutes for 40 moves + 30 minutes for the rest of games + 30 seconds per move from move one."]
[WhiteElo "2107"]
[BlackElo "1941"]

1. e4 {[%clk 01:30:57]} {[%emt 00:00:03]} c5 {[%clk 01:30:44]} {[%emt
00:00:17]} 2. Nf3 {[%clk 01:31:20]} {[%emt 00:00:08]} e6 {[%clk 01:30:45]}
{[%emt 00:00:29]} 3. c3 {[%clk 01:31:26]} {[%emt 00:00:22]} d5 {[%clk
01:29:06]} {[%emt 00:02:10]} 4. e5 {[%clk 01:31:51]} {[%emt 00:00:05]} Nc6
{[%clk 01:23:10]} {[%emt 00:06:26]} 5. d4 {[%clk 01:31:31]} {[%emt 00:00:50]}
Bd7 {[%clk 01:22:27]} {[%emt 00:01:13]} 6. Be2 {[%clk 01:31:34]} {[%emt
00:00:26]} Rc8 {[%clk 01:19:43]} {[%emt 00:03:15]} 7. O-O {[%clk 01:31:27]}
{[%emt 00:00:38]} Be7 {[%clk 01:09:15]} {[%emt 00:10:58]} 8. a3 {[%clk
01:30:46]} {[%emt 00:01:10]} cxd4 {[%clk 01:02:10]} {[%emt 00:07:36]} 9. cxd4
{[%clk 01:31:13]} {[%emt 00:00:02]} Na5 {[%clk 00:49:57]} {[%emt 00:12:42]} 10.
Nbd2 {[%clk 01:19:00]} {[%emt 00:12:44]} Qc7 {[%clk 00:39:26]} {[%emt
00:11:01]} 11. b4 {[%clk 01:13:56]} {[%emt 00:05:34]} Nc4 {[%clk 00:33:32]}
{[%emt 00:06:25]} 12. Nb3 {[%clk 01:06:53]} {[%emt 00:07:32]} Ba4 {[%clk
00:25:44]} {[%emt 00:08:18]} 13. Qd3 {[%clk 01:07:01]} {[%emt 00:00:22]} b6
{[%clk 00:19:22]} {[%emt 00:06:52]} 14. Ra2 {[%clk 00:58:06]} {[%emt 00:09:25]}
Bd8 {[%clk 00:13:14]} {[%emt 00:06:37]} 15. Rc2 {[%clk 00:51:11]} {[%emt
00:07:25]} Qd7 {[%clk 00:08:32]} {[%emt 00:05:14]} 16. Rc3 {[%clk 00:49:47]}
{[%emt 00:01:53]} Ne7 {[%clk 00:06:43]} {[%emt 00:02:18]} 17. Qc2 {[%clk
00:40:15]} {[%emt 00:10:02]} b5 {[%clk 00:06:30]} {[%emt 00:00:44]} 18. Qa2
{[%clk 00:38:00]} {[%emt 00:02:45]} Bxb3 {[%clk 00:06:03]} {[%emt 00:00:57]} 19.
Qxb3 {[%clk 00:38:27]} {[%emt 00:00:02]} Bb6 {[%clk 00:05:55]} {[%emt
00:00:38]} 20. Rd1 {[%clk 00:34:01]} {[%emt 00:04:56]} O-O {[%clk 00:05:56]}
{[%emt 00:00:30]} 21. Bd3 {[%clk 00:32:40]} {[%emt 00:01:50]} Ng6 {[%clk
00:04:12]} {[%emt 00:02:15]} 22. h4 {[%clk 00:32:10]} {[%emt 00:01:00]} Bd8
{[%clk 00:03:06]} {[%emt 00:01:36]} 23. g3 {[%clk 00:30:40]} {[%emt 00:02:00]}
Re8 {[%clk 00:03:05]} {[%emt 00:00:31]} 24. h5 {[%clk 00:28:55]} {[%emt
00:02:14]} Nf8 {[%clk 00:03:23]} {[%emt 00:00:13]} 25. Bb1 {[%clk 00:28:25]}
{[%emt 00:01:00]} Rc6 {[%clk 00:03:19]} {[%emt 00:00:35]} 26. Qc2 {[%clk
00:23:34]} {[%emt 00:05:20]} Be7 {[%clk 00:03:24]} {[%emt 00:00:25]} 27. Ne1
{[%clk 00:20:51]} {[%emt 00:03:13]} Rec8 {[%clk 00:03:25]} {[%emt 00:00:29]} 28.
Qe2 {[%clk 00:20:27]} {[%emt 00:00:54]} Qd8 {[%clk 00:02:39]} {[%emt 00:01:15]}
29. Nd3 {[%clk 00:20:02]} {[%emt 00:00:55]} Nxe5 {[%clk 00:02:23]} {[%emt
00:00:47]} 30. Rxc6 {[%clk 00:16:46]} {[%emt 00:03:46]} Nxc6 {[%clk 00:02:40]}
{[%emt 00:00:13]} 31. Nc5 {[%clk 00:16:33]} {[%emt 00:00:43]} Bf6 {[%clk
00:02:17]} {[%emt 00:00:53]} 32. Be3 {[%clk 00:15:53]} {[%emt 00:01:10]} Qe7
{[%clk 00:02:29]} {[%emt 00:00:18]} 33. Qxb5 {[%clk 00:15:52]} {[%emt
00:00:30]} Bg5 {[%clk 00:02:04]} {[%emt 00:00:56]} 34. f4 {[%clk 00:15:34]}
{[%emt 00:00:47]} Bh6 {[%clk 00:01:56]} {[%emt 00:00:38]} 35. Qd3 {[%clk
00:13:30]} {[%emt 00:02:34]} f5 {[%clk 00:02:09]} {[%emt 00:00:18]} 36. Kg2
{[%clk 00:12:55]} {[%emt 00:01:05]} Qf7 {[%clk 00:02:06]} {[%emt 00:00:33]} 37.
Qe2 {[%clk 00:12:48]} {[%emt 00:00:37]} Nd8 {[%clk 00:02:13]} {[%emt 00:00:23]}
38. b5 {[%clk 00:10:53]} {[%emt 00:02:24]} g6 {[%clk 00:01:33]} {[%emt
00:01:11]} 39. hxg6 {[%clk 00:10:54]} {[%emt 00:00:28]} hxg6 {[%clk 00:01:43]}
{[%emt 00:00:21]} 40. a4 {[%clk 00:09:09]} {[%emt 00:02:15]} Bg7 {[%clk
00:01:49]} {[%emt 00:00:23]} 41. Qa2 {[%clk 00:07:37]} {[%emt 00:02:02]} Nb7
{[%clk 00:05:16]} {[%emt 00:27:04]} 42. Rc1 {[%clk 00:34:07]} {[%emt 00:03:59]}
Nd6 {[%clk 00:02:30]} {[%emt 00:03:17]} 43. Bd3 {[%clk 00:34:22]} {[%emt
00:00:15]} Nh7 {[%clk 00:01:27]} {[%emt 00:01:33]} 44. a5 {[%clk 00:34:12]}
{[%emt 00:00:40]} Nf6 {[%clk 00:01:23]} {[%emt 00:00:33]} 45. b6 {[%clk
00:33:41]} {[%emt 00:01:02]} axb6 {[%clk 00:01:45]} {[%emt 00:00:08]} 46. axb6
{[%clk 00:33:59]} {[%emt 00:00:12]} Ng4 {[%clk 00:01:53]} {[%emt 00:00:22]} 47.
Bg1 {[%clk 00:33:38]} {[%emt 00:00:50]} g5 {[%clk 00:02:05]} {[%emt 00:00:19]}
48. fxg5 {[%clk 00:31:46]} {[%emt 00:02:22]} Qh5 {[%clk 00:02:05]} {[%emt
00:00:30]} 49. Qe2 {[%clk 00:27:16]} {[%emt 00:04:59]} Re8 {[%clk 00:01:33]}
{[%emt 00:01:02]} 50. b7 {[%clk 00:24:14]} {[%emt 00:03:33]} e5 {[%clk
00:01:34]} {[%emt 00:00:29]} 51. dxe5 {[%clk 00:23:09]} {[%emt 00:01:34]} Bxe5
{[%clk 00:01:14]} {[%emt 00:00:50]} 52. Nd7 {[%clk 00:17:35]} {[%emt 00:06:05]}
Nxb7 {[%clk 00:00:31]} {[%emt 00:01:12]} 53. Bxf5 {[%clk 00:16:54]} {[%emt
00:01:11]} Bb2 {[%clk 00:00:37]} {[%emt 00:00:26]} 54. Be6+ {[%clk 00:15:51]}
{[%emt 00:01:32]} 1-0

[Event "Schack-SM 2023: Junior-SM"]
[Site "Helsingborg Arena, Mellersta Stenbocksgatan 14, Helsingborg, Sweden"]
[Date "2023.07.03"]
[Round "3.1"]
[White "Wernberg, Hugo"]
[Black "Falkevall, Axel"]
[Result "0-1"]
[TimeControl "90 minutes for 40 moves + 30 minutes for the rest of the game + 30 seconds per move from move one."]
[WhiteTitle "FM"]
[BlackTitle "FM"]
[WhiteElo "2217"]
[BlackElo "2311"]

1. d4 {[%clk 01:30:56]} {[%emt 00:00:03]} Nf6 {[%clk 01:30:56]} {[%emt
00:00:04]} 2. c4 {[%clk 01:31:02]} {[%emt 00:00:24]} g6 {[%clk 01:31:21]}
{[%emt 00:00:05]} 3. Nf3 {[%clk 01:31:24]} {[%emt 00:00:08]} Bg7 {[%clk
01:31:46]} {[%emt 00:00:05]} 4. e3 {[%clk 01:31:24]} {[%emt 00:00:31]} O-O
{[%clk 01:31:47]} {[%emt 00:00:29]} 5. Nc3 {[%clk 01:31:45]} {[%emt 00:00:09]}
c5 {[%clk 01:30:51]} {[%emt 00:01:25]} 6. d5 {[%clk 01:31:56]} {[%emt
00:00:19]} d6 {[%clk 01:30:20]} {[%emt 00:01:00]} 7. h3 {[%clk 01:29:48]}
{[%emt 00:02:39]} e6 {[%clk 01:30:08]} {[%emt 00:00:42]} 8. Bd3 {[%clk
01:29:31]} {[%emt 00:00:47]} exd5 {[%clk 01:29:10]} {[%emt 00:01:28]} 9. cxd5
{[%clk 01:29:17]} {[%emt 00:00:45]} Na6 {[%clk 01:24:04]} {[%emt 00:05:36]} 10.
O-O {[%clk 01:28:04]} {[%emt 00:01:42]} Nc7 {[%clk 01:21:45]} {[%emt 00:02:49]}
11. e4 {[%clk 01:28:22]} {[%emt 00:00:12]} b5 {[%clk 01:16:37]} {[%emt
00:05:37]} 12. Re1 {[%clk 01:23:13]} {[%emt 00:05:39]} Rb8 {[%clk 01:12:41]}
{[%emt 00:04:27]} 13. Bf1 {[%clk 01:17:55]} {[%emt 00:05:48]} Re8 {[%clk
01:01:28]} {[%emt 00:11:43]} 14. e5 {[%clk 00:51:31]} {[%emt 00:26:54]} b4
{[%clk 00:50:46]} {[%emt 00:11:12]} 15. exf6 {[%clk 00:28:15]} {[%emt
00:23:45]} bxc3 {[%clk 00:50:12]} {[%emt 00:01:05]} 16. Rxe8+ {[%clk 00:25:03]}
{[%emt 00:03:42]} Nxe8 {[%clk 00:48:10]} {[%emt 00:02:32]} 17. fxg7 {[%clk
00:21:58]} {[%emt 00:03:35]} cxb2 {[%clk 00:47:46]} {[%emt 00:00:54]} 18. Bxb2
{[%clk 00:21:02]} {[%emt 00:01:26]} Rxb2 {[%clk 00:48:05]} {[%emt 00:00:11]} 19.
Qc1 {[%clk 00:19:40]} {[%emt 00:01:52]} Qf6 {[%clk 00:43:15]} {[%emt 00:05:19]}
20. Rb1 {[%clk 00:14:49]} {[%emt 00:05:22]} Rxb1 {[%clk 00:40:47]} {[%emt
00:02:58]} 21. Qxb1 {[%clk 00:15:12]} {[%emt 00:00:07]} Qe7 {[%clk 00:34:46]}
{[%emt 00:06:31]} 22. Bb5 {[%clk 00:12:26]} {[%emt 00:03:16]} Nf6 {[%clk
00:32:20]} {[%emt 00:02:56]} 23. Bc6 {[%clk 00:11:54]} {[%emt 00:01:01]} Kxg7
{[%clk 00:31:36]} {[%emt 00:01:15]} 24. Qb8 {[%clk 00:09:25]} {[%emt 00:02:59]}
Bf5 {[%clk 00:29:40]} {[%emt 00:02:26]} 25. Qa8 {[%clk 00:08:39]} {[%emt
00:01:16]} Be4 {[%clk 00:23:41]} {[%emt 00:06:28]} 26. a4 {[%clk 00:05:59]}
{[%emt 00:03:10]} Bxf3 {[%clk 00:21:48]} {[%emt 00:02:24]} 27. gxf3 {[%clk
00:06:20]} {[%emt 00:00:09]} c4 {[%clk 00:21:07]} {[%emt 00:01:11]} 28. Bb5
{[%clk 00:05:23]} {[%emt 00:01:27]} Qe1+ {[%clk 00:20:38]} {[%emt 00:00:59]} 29.
Kg2 {[%clk 00:05:38]} {[%emt 00:00:15]} c3 {[%clk 00:20:46]} {[%emt 00:00:22]}
30. Bd3 {[%clk 00:05:39]} {[%emt 00:00:29]} Qd2 {[%clk 00:20:56]} {[%emt
00:00:19]} 31. Bb1 {[%clk 00:05:52]} {[%emt 00:00:18]} c2 {[%clk 00:19:51]}
{[%emt 00:01:35]} 32. Bxc2 {[%clk 00:06:11]} {[%emt 00:00:11]} Qxc2 {[%clk
00:20:17]} {[%emt 00:00:04]} 33. Qxa7 {[%clk 00:06:22]} {[%emt 00:00:19]} Qd1
{[%clk 00:14:15]} {[%emt 00:06:32]} 34. Qb6 {[%clk 00:04:39]} {[%emt 00:02:13]}
Qxa4 {[%clk 00:13:48]} {[%emt 00:00:57]} 35. Qxd6 {[%clk 00:04:49]} {[%emt
00:00:20]} Qd4 {[%clk 00:14:03]} {[%emt 00:00:15]} 0-1

[Event "Schack-SM 2023: Veteran-SM 65+"]
[Site "Helsingborg Arena, Mellersta Stenbocksgatan 14, Helsingborg, Sweden"]
[Date "2023.07.03"]
[Round "3.1"]
[White "Blomstrom, Lars"]
[Black "Soderberg, Per"]
[Result "0-1"]
[TimeControl "90 minutes for 40 moves + 30 minutes for the rest of games + 30 seconds per move from move one."]
[BlackTitle "CM"]
[WhiteElo "2021"]
[BlackElo "2111"]

1. e4 {[%clk 01:30:58]} c5 {[%clk 01:30:53]} {[%emt 00:00:08]} 2. Nc3 {[%clk
01:31:09]} {[%emt 00:00:19]} Nc6 {[%clk 01:31:14]} {[%emt 00:00:09]} 3. f4
{[%clk 01:27:16]} {[%emt 00:04:22]} d6 {[%clk 01:29:01]} {[%emt 00:02:43]} 4.
Bb5 {[%clk 01:25:32]} {[%emt 00:02:15]} Bd7 {[%clk 01:28:58]} {[%emt 00:00:33]}
5. Bxc6 {[%clk 01:21:38]} {[%emt 00:04:24]} Bxc6 {[%clk 01:29:03]} {[%emt
00:00:25]} 6. Nf3 {[%clk 01:22:04]} {[%emt 00:00:03]} g6 {[%clk 01:27:40]}
{[%emt 00:01:54]} 7. O-O {[%clk 01:21:08]} {[%emt 00:01:26]} Bg7 {[%clk
01:28:01]} {[%emt 00:00:08]} 8. d3 {[%clk 01:21:06]} {[%emt 00:00:32]} b5
{[%clk 01:26:31]} {[%emt 00:02:00]} 9. Qe1 {[%clk 01:16:39]} {[%emt 00:04:58]}
b4 {[%clk 01:24:54]} {[%emt 00:02:06]} 10. Nd1 {[%clk 01:15:49]} {[%emt
00:01:20]} e6 {[%clk 01:19:22]} {[%emt 00:06:03]} 11. f5 {[%clk 01:03:49]}
{[%emt 00:12:30]} gxf5 {[%clk 01:13:22]} {[%emt 00:06:29]} 12. Qg3 {[%clk
01:01:03]} {[%emt 00:03:15]} Kf8 {[%clk 01:13:29]} {[%emt 00:00:24]} 13. Nf2
{[%clk 00:54:59]} {[%emt 00:06:34]} Ne7 {[%clk 01:11:17]} {[%emt 00:02:43]} 14.
Qh3 {[%clk 00:47:15]} {[%emt 00:08:13]} h6 {[%clk 01:07:40]} {[%emt 00:04:07]}
15. Qh5 {[%clk 00:42:59]} {[%emt 00:04:46]} Qe8 {[%clk 01:03:01]} {[%emt
00:05:10]} 16. Rb1 {[%clk 00:40:01]} {[%emt 00:03:28]} Kg8 {[%clk 01:00:01]}
{[%emt 00:03:29]} 17. Bd2 {[%clk 00:37:09]} {[%emt 00:03:22]} fxe4 {[%clk
00:57:50]} {[%emt 00:02:41]} 18. Nxe4 {[%clk 00:29:38]} {[%emt 00:08:02]} Bxe4
{[%clk 00:57:10]} {[%emt 00:01:10]} 19. dxe4 {[%clk 00:30:06]} {[%emt
00:00:02]} f5 {[%clk 00:57:28]} {[%emt 00:00:11]} 20. Qh3 {[%clk 00:30:06]}
{[%emt 00:00:30]} Qg6 {[%clk 00:53:41]} {[%emt 00:04:16]} 21. exf5 {[%clk
00:22:53]} {[%emt 00:07:45]} Nxf5 {[%clk 00:50:07]} {[%emt 00:04:03]} 22. Nh4
{[%clk 00:17:59]} {[%emt 00:05:24]} Nxh4 {[%clk 00:48:12]} {[%emt 00:02:25]} 23.
Qxh4 {[%clk 00:18:28]} {[%emt 00:00:02]} Rh7 {[%clk 00:43:17]} {[%emt
00:05:24]} 24. c3 {[%clk 00:17:13]} {[%emt 00:01:45]} a5 {[%clk 00:43:30]}
{[%emt 00:00:17]} 25. Rbe1 {[%clk 00:14:18]} {[%emt 00:03:24]} Rf8 {[%clk
00:41:15]} {[%emt 00:02:46]} 26. Rxf8+ {[%clk 00:06:46]} {[%emt 00:08:02]} Bxf8
{[%clk 00:41:35]} {[%emt 00:00:11]} 27. Qc4 {[%clk 00:06:27]} {[%emt 00:00:48]}
d5 {[%clk 00:38:14]} {[%emt 00:03:51]} 28. Qa6 {[%clk 00:06:41]} {[%emt
00:00:16]} Re7 {[%clk 00:38:04]} {[%emt 00:00:39]} 29. Rf1 {[%clk 00:04:10]}
{[%emt 00:03:02]} Rf7 {[%clk 00:36:19]} {[%emt 00:02:14]} 30. Re1 {[%clk
00:04:17]} {[%emt 00:00:25]} Qf5 {[%clk 00:34:37]} {[%emt 00:02:11]} 31. Qxe6
{[%clk 00:02:35]} {[%emt 00:02:13]} Qf2+ {[%clk 00:34:25]} {[%emt 00:00:42]} 32.
Kh1 {[%clk 00:03:03]} {[%emt 00:00:01]} Kh7 {[%clk 00:30:37]} {[%emt 00:04:18]}
33. Qe3 {[%emt 00:02:47]} 0-1